bitfinex-derivatives/quotes_BTCF0:USTF0_20210111
["timestamp","ask_amount","ask_price","bid_price","bid_amount"]
[1610385194280,0.01857,31367.0,31354.0,0.13632608]
[1610385194483,7e-05,31367.0,31354.0,0.13632608]
[1610385194881,0.09106,31375.0,31354.0,0.24085608]
[1610385195081,0.2956,31376.0,31354.0,0.24085608]
[1610385195685,0.13632608,31355.0,31354.0,0.10453]
[1610385195884,0.13632608,31355.0,31354.0,0.06083]
[1610385196084,0.24066608,31355.0,31350.0,0.0944]
[1610385196285,0.24066608,31355.0,31346.0,0.0956]
[1610385196286,0.24066608,31355.0,31324.0,0.0002]
[1610385196486,0.24066608,31355.0,31321.0,0.0302]
[1610385196685,0.24066608,31355.0,31249.0,2.1359202]
[1610385197087,0.24066608,31355.0,31312.0,0.0079]
[1610385197289,4.2555,31334.0,31285.0,4.0001]
[1610385197487,4.35004,31334.0,31285.0,4.0001]
[1610385198287,4.4813,31322.0,31279.0,0.0951]
[1610385198488,4.59144,31322.0,31261.0,4.9078]
[1610385199487,0.0943,31321.0,31262.0,0.095]
[1610385199689,0.13632608,31327.0,31320.0,0.13632608]
[1610385199889,0.13632608,31327.0,31313.0,0.07113]
[1610385200088,0.22483608,31327.0,31313.0,0.07113]
[1610385200890,0.22483608,31327.0,31314.0,0.097]
[1610385201488,0.097,31326.0,31314.0,0.097]
[1610385201688,0.13632608,31315.0,31314.0,0.097]
[1610385203790,0.23322608,31315.0,31314.0,0.097]
[1610385204389,0.23322608,31315.0,31314.0,0.0318]
[1610385204589,0.30468608,31315.0,31314.0,0.0318]
[1610385204988,0.30468608,31315.0,31297.0,0.0955]
[1610385205191,0.20778608,31315.0,31226.0,2.16828424]
[1610385205389,0.20778608,31315.0,31243.0,0.0971]
[1610385205789,0.13632608,31282.0,31271.0,0.13632608]
[1610385205989,0.13632608,31282.0,31257.0,8.1286]
[1610385206391,0.09722,31292.0,31257.0,8.1286]
[1610385206590,0.07146,31315.0,31257.0,8.23467]
[1610385207189,0.0947,31317.0,31257.0,8.23467]
[1610385207792,0.0947,31317.0,31257.0,0.10607]
[1610385208591,0.2783,31316.0,31257.0,0.08807]
[1610385208791,0.2783,31316.0,31241.0,0.0972]
[1610385208792,0.38412,31316.0,31241.0,0.0972]
[1610385208992,0.38412,31316.0,31213.0,2.19802834]
[1610385209193,0.38412,31316.0,31201.0,2.19929065]
[1610385209416,0.10582,31316.0,31201.0,2.19929065]
[1610385209595,1.5,31315.0,31194.0,0.0966]
[1610385209809,0.13632608,31195.0,31194.0,0.0966]
[1610385209994,0.23282608,31195.0,31194.0,0.0966]
[1610385210194,0.13632608,31195.0,31182.0,2.20810391]
[1610385210420,0.13632608,31195.0,31176.0,2.57612123]
[1610385210421,0.08693,31213.0,31177.0,0.0964]
[1610385210594,0.07242,31206.0,31177.0,0.20555]
[1610385210797,0.07242,31213.0,31177.0,0.20555]
[1610385211011,0.07086,31206.0,31177.0,0.14855]
[1610385211220,0.0966,31205.0,31164.0,2.25876335]
[1610385211410,0.0966,31205.0,31157.0,2.58552391]
[1610385211411,0.07086,31206.0,31159.0,2.2231884]
[1610385211610,0.07086,31206.0,31159.0,0.10438]
[1610385211802,0.13632608,31160.0,31159.0,0.10438]
[1610385212605,0.13632608,31160.0,31159.0,0.20178]
[1610385213198,0.09314,31174.0,31159.0,0.20178]
[1610385213599,0.09314,31174.0,31159.0,0.09248]
[1610385213799,0.13632608,31160.0,31155.0,0.095]
[1610385214000,0.0951,31159.0,31155.0,0.095]
[1610385214399,0.0793,31171.0,31155.0,0.095]
[1610385214599,0.047,31174.0,31155.0,0.095]
[1610385214800,0.07086,31206.0,31155.0,0.095]
[1610385215799,0.01506726,31205.0,31163.0,0.13632608]
[1610385216001,0.01506726,31205.0,31163.0,0.06867]
[1610385216201,3.992,31196.0,31163.0,0.06867]
[1610385216400,0.0965,31195.0,31163.0,0.06867]
[1610385217400,0.0948,31204.0,31163.0,0.06867]
[1610385217600,0.06337386,31213.0,31163.0,0.06867]
[1610385217802,0.05297386,31213.0,31212.0,0.13632608]
[1610385218000,1.5,31276.0,31183.0,0.11078]
[1610385218202,1.5,31307.0,31183.0,0.11078]
[1610385218802,0.0946,31263.0,31183.0,0.11078]
[1610385219202,0.0946,31263.0,31184.0,0.096]
[1610385219403,0.0946,31263.0,31175.0,0.10987]
[1610385219603,0.16725,31263.0,31175.0,0.10987]
[1610385219803,1.0,31236.0,31188.0,0.13632608]
[1610385220007,1.10163,31236.0,31188.0,0.13632608]
[1610385220207,1.10163,31236.0,31175.0,0.10987]
[1610385221415,0.89543,31236.0,31175.0,0.10987]
[1610385221706,0.10163,31236.0,31175.0,0.10987]
[1610385221906,0.10163,31236.0,31234.0,0.13632608]
[1610385222505,0.10163,31236.0,31230.0,0.0949]
[1610385223006,0.10163,31236.0,31230.0,0.0691]
[1610385223807,0.13632608,31231.0,31230.0,0.0691]
[1610385224007,0.01,31230.0,31226.0,0.0972]
[1610385225608,0.0958,31229.0,31226.0,0.0972]
[1610385225809,0.01,31230.0,31226.0,0.13632608]
[1610385226810,0.01,31230.0,31204.0,1.0]
[1610385227210,0.0951,31229.0,31204.0,1.0]
[1610385227410,0.17837,31229.0,31204.0,0.9138]
[1610385227610,0.17837,31229.0,31204.0,0.6738]
[1610385227812,0.17837,31229.0,31195.0,0.13632608]
[1610385228237,0.08327,31229.0,31195.0,0.13632608]
[1610385229031,0.08327,31229.0,31196.0,0.0975]
[1610385229817,0.08327,31229.0,31203.0,0.13632608]
[1610385230018,0.08327,31229.0,31196.0,0.0975]
[1610385230820,0.08327,31229.0,31191.0,0.10112]
[1610385231022,0.08327,31229.0,31182.0,0.096]
[1610385231222,0.08327,31229.0,31149.0,7.3814]
[1610385231822,0.13632608,31181.0,31174.0,0.13632608]
[1610385232422,0.13632608,31181.0,31151.0,0.0973]
[1610385232622,0.13632608,31181.0,31155.0,0.0947]
[1610385232824,0.07849,31189.0,31155.0,0.0947]
[1610385233225,0.08327,31229.0,31155.0,0.0947]
[1610385233425,0.01,31230.0,31155.0,0.0947]
[1610385233827,0.01,31230.0,31205.0,0.13632608]
[1610385234025,0.0959,31229.0,31205.0,0.13632608]
[1610385234224,0.1976,31229.0,31205.0,0.13632608]
[1610385235027,0.1976,31229.0,31206.0,0.0965]
[1610385235624,0.1976,31229.0,31200.0,0.095]
[1610385235825,0.1976,31229.0,31202.0,0.13632608]
[1610385236427,0.1017,31229.0,31202.0,0.13632608]
[1610385236625,0.1017,31229.0,31202.0,0.20828608]
[1610385237625,0.1017,31229.0,31203.0,0.0947]
[1610385237824,0.1017,31229.0,31228.0,0.13632608]
[1610385238226,0.1973,31229.0,31228.0,0.13632608]
[1610385239030,0.1973,31229.0,31228.0,0.23132608]
[1610385239827,0.23802608,31229.0,31221.0,0.13632608]
[1610385240627,0.23802608,31229.0,31215.0,0.0956]
[1610385240828,0.096,31228.0,31215.0,0.0956]
[1610385241227,0.23802608,31229.0,31157.0,2.21028409]
[1610385241427,0.23802608,31229.0,31153.0,2.21139066]
[1610385241826,0.23802608,31229.0,31200.0,0.13632608]
[1610385241827,0.13632608,31203.0,31200.0,0.13632608]
[1610385242027,0.13632608,31203.0,31202.0,0.08765]
[1610385242227,0.1017,31229.0,31202.0,0.08765]
[1610385242628,0.01,31230.0,31202.0,0.08765]
[1610385243831,0.14632608,31230.0,31229.0,0.13632608]
[1610385244234,0.01,31230.0,31210.0,0.11333]
[1610385245934,0.13632608,31211.0,31210.0,0.11333]
[1610385246533,0.13632608,31211.0,31202.0,0.08765]
[1610385246736,0.09911,31222.0,31202.0,0.08765]
[1610385246934,0.09911,31222.0,31152.0,1.7988]
[1610385247136,0.06861,31222.0,31202.0,0.06965]
[1610385247736,0.01,31230.0,31202.0,0.06965]
[1610385247937,0.01,31230.0,31220.0,0.13632608]
[1610385248137,0.01,31230.0,31210.0,0.08189]
[1610385249639,0.01,31230.0,31202.0,0.06965]
[1610385250041,0.01,31230.0,31210.0,0.13632608]
[1610385250241,0.10163,31236.0,31210.0,0.13632608]
[1610385250441,1.0,31262.0,31210.0,0.21695608]
[1610385250841,0.572,31262.0,31210.0,0.21695608]
[1610385251041,0.3651,31262.0,31210.0,0.21695608]
[1610385251443,0.2858,31277.0,31224.0,1.0]
[1610385253345,0.2858,31277.0,31250.0,1.0]
[1610385253546,2.58458823,31366.0,31250.0,1.0]
[1610385253945,0.13632608,31280.0,31250.0,1.0]
[1610385254145,0.23004608,31280.0,31250.0,1.0]
[1610385254347,0.09372,31280.0,31250.0,1.0]
[1610385255446,2e-05,31280.0,31260.0,1.0]
[1610385255647,1.5,31358.0,31260.0,1.09256]
[1610385255846,0.0943,31364.0,31261.0,0.0948]
[1610385256046,0.0943,31364.0,31299.0,0.13632608]
[1610385256047,0.13632608,31300.0,31299.0,0.13632608]
[1610385256248,0.22700608,31300.0,31299.0,0.13632608]
[1610385256748,0.18728,31300.0,31299.0,0.13632608]
[1610385257147,0.18728,31300.0,31299.0,0.23212608]
[1610385257348,0.1106,31310.0,31299.0,0.0958]
[1610385257554,0.1106,31310.0,31286.0,0.0958]
[1610385257748,0.1106,31310.0,31275.0,0.08129]
[1610385257949,0.13632608,31276.0,31275.0,0.08129]
[1610385258751,0.13632608,31276.0,31275.0,0.0949]
[1610385258952,0.08913,31277.0,31275.0,0.0949]
[1610385259555,0.18553,31277.0,31275.0,0.0949]
[1610385259753,0.08913,31277.0,31275.0,0.0949]
[1610385259954,0.08913,31277.0,31276.0,0.13632608]
[1610385260352,0.06043,31277.0,31276.0,0.0971]
[1610385260554,3e-05,31277.0,31276.0,0.0971]
[1610385260752,0.0958,31302.0,31276.0,0.0971]
[1610385260953,0.3179,31360.0,31276.0,0.0971]
[1610385261754,0.3179,31360.0,31276.0,0.075]
[1610385261958,0.13632608,31277.0,31276.0,0.0538]
[1610385262154,0.23342608,31277.0,31276.0,0.0538]
[1610385262353,0.23342608,31277.0,31248.0,4.1424]
[1610385262956,0.06302608,31277.0,31248.0,4.1424]
[1610385263355,0.06302608,31277.0,31276.0,6.0]
[1610385263556,0.06302608,31277.0,31276.0,6.0953]
[1610385265155,0.15992608,31277.0,31276.0,6.0953]
[1610385265355,0.15992608,31277.0,31276.0,1.0953]
[1610385265757,0.15992608,31277.0,31276.0,0.9283]
[1610385265956,0.15992608,31277.0,31276.0,0.8731]
[1610385266156,0.15992608,31277.0,31276.0,1.0]
[1610385266357,0.15992608,31277.0,31271.0,0.0948]
[1610385267457,0.15992608,31277.0,31271.0,0.0562]
[1610385267659,0.25462608,31277.0,31263.0,0.0663]
[1610385267858,4.6616,31272.0,31249.0,0.09186]
[1610385268058,0.13632608,31250.0,31240.0,1.0]
[1610385268458,0.13632608,31250.0,31235.0,0.13632608]
[1610385269258,0.13632608,31250.0,31228.0,4.3932]
[1610385269860,0.0949,31249.0,31228.0,4.3932]
[1610385270059,0.13632608,31229.0,31228.0,4.3932]
[1610385271059,0.13632608,31229.0,31228.0,4.4896]
[1610385272261,0.23332608,31229.0,31228.0,4.4896]
[1610385272462,0.23332608,31229.0,31228.0,10.4896]
[1610385273061,0.23332608,31229.0,31228.0,10.3932]
[1610385273664,0.13632608,31229.0,31228.0,6.0]
[1610385273963,0.13632608,31229.0,31228.0,6.0964]
[1610385274765,0.09436,31242.0,31228.0,6.0964]
[1610385275166,0.10074,31252.0,31228.0,6.0964]
[1610385275570,1.0,31274.0,31228.0,6.0964]
[1610385275766,0.0971,31273.0,31228.0,6.0964]
[1610385275968,0.0971,31273.0,31254.0,0.13632608]
[1610385276367,0.0971,31273.0,31237.0,0.09012]
[1610385277069,0.0971,31273.0,31237.0,0.18502]
[1610385278069,0.13632608,31238.0,31237.0,0.06802]
[1610385278269,0.13632608,31238.0,31230.0,0.0946]
[1610385279370,0.23082608,31238.0,31230.0,0.0946]
[1610385279568,0.13632608,31238.0,31230.0,0.0946]
[1610385279768,0.13632608,31238.0,31228.0,0.0964]
[1610385279769,0.13632608,31238.0,31226.0,0.0974]
[1610385279973,0.13632608,31227.0,31224.0,5.0]
[1610385280370,0.13632608,31227.0,31211.0,0.13632608]
[1610385280770,0.13632608,31227.0,31211.0,0.23332608]
[1610385281372,0.13632608,31227.0,31211.0,0.097]
[1610385281572,0.13632608,31227.0,31207.0,0.0641]
[1610385281771,0.13632608,31227.0,31195.0,1.0]
[1610385281972,0.13632608,31196.0,31195.0,1.0]
[1610385282371,0.13632608,31196.0,31166.0,2.3057034]
[1610385282574,0.13632608,31196.0,31157.0,2.30550752]
[1610385282972,0.13632608,31196.0,31155.0,2.30561086]
[1610385283172,4.36752608,31196.0,31155.0,2.30561086]
[1610385283372,4.36752608,31196.0,31153.0,2.30572001]
[1610385283773,4.36752608,31196.0,31152.0,2.30479974]
[1610385283973,0.13632608,31188.0,31163.0,0.13632608]
[1610385284175,0.13632608,31188.0,31152.0,2.30479974]
[1610385284577,0.13632608,31188.0,31150.0,2.30398607]
[1610385284775,0.09281,31202.0,31150.0,2.30398607]
[1610385284976,0.09281,31202.0,31174.0,0.10112]
[1610385285978,0.09281,31202.0,31149.0,2.30422448]
[1610385286178,0.09281,31202.0,31146.0,2.30283703]
[1610385286381,0.09281,31202.0,31163.0,0.13632608]
[1610385286979,0.09281,31202.0,31155.0,0.08016]
[1610385287380,4.8344,31197.0,31155.0,0.08016]
[1610385287980,0.0949,31196.0,31155.0,0.08016]
[1610385288180,0.0949,31196.0,31156.0,0.0968]
[1610385288381,0.13632608,31157.0,31156.0,0.0968]
[1610385288581,0.0825,31176.0,31156.0,0.0968]
[1610385289783,4.4197,31160.0,31156.0,0.0968]
[1610385290183,3.97281255,31160.0,31156.0,0.0968]
[1610385290385,3.97281255,31160.0,31159.0,0.13632608]
[1610385290583,3.97281255,31160.0,31159.0,0.23222608]
[1610385291483,4.06911255,31160.0,31159.0,0.23222608]
[1610385291893,4.06911255,31160.0,31159.0,0.0959]
[1610385292284,4.06911255,31160.0,31145.0,0.10561]
[1610385292489,0.0963,31160.0,31145.0,0.10561]
[1610385293285,0.0963,31160.0,31146.0,0.0974]
[1610385294387,0.0963,31160.0,31159.0,0.13632608]
[1610385294588,4.6632,31164.0,31159.0,0.23272608]
[1610385294989,4.6632,31164.0,31159.0,0.13632608]
[1610385295188,0.13632608,31165.0,31159.0,0.13632608]
[1610385295490,0.0971,31171.0,31159.0,0.13632608]
[1610385296089,0.0971,31171.0,31160.0,0.0957]
[1610385296488,0.0971,31171.0,31169.0,0.13632608]
[1610385296690,1.5,31209.0,31169.0,0.23172608]
[1610385296890,0.11219,31210.0,31169.0,0.0954]
[1610385297090,1.5,31209.0,31169.0,0.0954]
[1610385297288,1.5,31209.0,31169.0,0.091]
[1610385297488,0.2818,31208.0,31169.0,0.0165]
[1610385297890,1.5,31207.0,31187.0,0.03508686]
[1610385298290,0.2818,31208.0,31187.0,0.01458686]
[1610385298491,0.13632608,31188.0,31182.0,0.9897]
[1610385298690,0.23851608,31188.0,31182.0,0.9897]
[1610385298891,0.23851608,31188.0,31170.0,0.0775]
[1610385299098,0.23851608,31188.0,31170.0,0.0702]
[1610385299292,0.23851608,31188.0,31170.0,0.0533]
[1610385300492,0.13632608,31171.0,31170.0,0.0533]
[1610385300696,0.23212608,31171.0,31166.0,0.0963]
[1610385300895,0.0968,31170.0,31166.0,0.0963]
[1610385301496,0.0968,31170.0,31159.0,0.36381761]
[1610385302395,0.0968,31170.0,31169.0,0.13632608]
[1610385302595,0.0968,31170.0,31169.0,0.23322608]
[1610385302796,0.0968,31170.0,31169.0,0.13632608]
[1610385303703,0.0968,31170.0,31169.0,0.23272608]
[1610385304801,0.0968,31170.0,31169.0,0.13632608]
[1610385305201,0.32048608,31171.0,31169.0,0.13632608]
[1610385305202,0.22468608,31171.0,31169.0,0.13632608]
[1610385305401,0.08836,31171.0,31169.0,0.13632608]
[1610385305804,3.8939,31172.0,31169.0,0.13632608]
[1610385306003,3.8939,31172.0,31169.0,0.23202608]
[1610385306403,0.13632608,31186.0,31169.0,0.23202608]
[1610385306605,4.937,31189.0,31169.0,0.23202608]
[1610385306805,4.937,31189.0,31169.0,0.13632608]
[1610385307208,4.937,31189.0,31187.0,6.0]
[1610385307209,4.8904,31189.0,31187.0,6.0]
[1610385307407,0.0964,31216.0,31187.0,5.60391]
[1610385307607,0.0953,31204.0,31187.0,5.3802]
[1610385307809,0.0953,31204.0,31176.0,3.8916]
[1610385308009,0.0965,31208.0,31176.0,3.8916]
[1610385308411,0.0965,31208.0,31207.0,0.13632608]
[1610385308610,0.0964,31216.0,31207.0,0.13632608]
[1610385309009,0.0173,31216.0,31207.0,0.13632608]
[1610385309212,0.2896,31260.0,31207.0,0.13632608]
[1610385309410,5.1805,31250.0,31207.0,0.13632608]
[1610385309611,5.1805,31250.0,31207.0,0.67732608]
[1610385310414,5.1805,31250.0,31249.0,0.13632608]
[1610385310614,0.2889,31283.0,31249.0,0.13632608]
[1610385310814,0.3841,31283.0,31249.0,0.13632608]
[1610385311018,0.0952,31283.0,31249.0,0.13632608]
[1610385311616,0.0952,31283.0,31249.0,0.23152608]
[1610385312415,0.23152608,31283.0,31282.0,0.13632608]
[1610385312617,0.13632608,31283.0,31249.0,0.0952]
[1610385313116,0.0969,31291.0,31249.0,0.0952]
[1610385313418,0.2878,31302.0,31249.0,0.0952]
[1610385313620,0.2878,31302.0,31243.0,3.6344]
[1610385313819,0.38025,31302.0,31243.0,3.6344]
[1610385314218,0.0966,31301.0,31243.0,3.6344]
[1610385314819,0.0966,31301.0,31244.0,0.0946]
[1610385315019,0.38025,31302.0,31244.0,0.0946]
[1610385315620,0.38025,31302.0,31243.0,3.6344]
[1610385316020,0.0949,31301.0,31243.0,3.6344]
[1610385316420,0.0949,31301.0,31274.0,0.13632608]
[1610385317023,0.0949,31301.0,29461.0,0.0812186]
[1610385317222,0.0949,31301.0,31223.0,1.6012]
[1610385317426,0.0949,31301.0,31243.0,0.0965]
[1610385317720,0.09245,31302.0,31243.0,0.0965]
[1610385318523,0.13632608,31288.0,31286.0,0.13632608]
[1610385318725,0.09303,31288.0,31286.0,0.13632608]
[1610385318925,0.05283,31288.0,31209.0,2.4523261]
[1610385319328,0.05283,31288.0,31218.0,2.2636339]
[1610385319726,0.03623,31288.0,31220.0,0.0958]
[1610385319926,0.08078,31288.0,31220.0,0.0958]
[1610385320127,0.08078,31288.0,31222.0,2.26310872]
[1610385320526,0.08078,31288.0,31287.0,0.13632608]
[1610385321129,6.3302,31327.0,31287.0,0.13632608]
[1610385321927,5.3302,31327.0,31287.0,0.13632608]
[1610385322526,0.13632608,31323.0,31283.0,0.07329]
[1610385322725,0.0848,31323.0,31283.0,0.07329]
[1610385323427,5.3302,31327.0,31283.0,0.07329]
[1610385324026,0.0944,31326.0,31283.0,0.07329]
[1610385324226,0.08776,31326.0,31283.0,0.07329]
[1610385324426,0.13632608,31351.0,31325.0,0.13632608]
[1610385324627,0.0968,31379.0,31325.0,0.13632608]
[1610385324628,0.10387,31328.0,31325.0,0.13632608]
[1610385324832,0.0968,31379.0,31325.0,0.13632608]
[1610385324833,0.2888,31378.0,31325.0,0.13632608]
[1610385325051,0.11094,31340.0,31325.0,0.13632608]
[1610385325228,0.09528,31366.0,31326.0,0.0947]
[1610385325433,0.0956,31365.0,31326.0,0.0947]
[1610385326031,0.09528,31366.0,31326.0,0.0947]
[1610385326228,0.0948,31365.0,31326.0,0.0947]
[1610385326431,0.09528,31366.0,31326.0,0.0947]
[1610385327834,0.2964,31378.0,31326.0,0.0947]
[1610385328234,2.51020573,31445.0,31326.0,0.0947]
[1610385328453,0.13632608,31393.0,31391.0,0.13632608]
[1610385329631,0.13632608,31393.0,31358.0,0.09363]
[1610385329830,0.10141,31392.0,31359.0,0.096]
[1610385330230,0.10141,31392.0,31350.0,0.0959]
[1610385330430,0.10141,31392.0,31365.0,0.13632608]
[1610385330830,0.10141,31392.0,31361.0,0.0969]
[1610385332432,0.10141,31392.0,31381.0,0.13632608]
[1610385332632,0.10141,31392.0,31361.0,0.0969]
[1610385335235,0.0941,31403.0,31361.0,0.0969]
[1610385335435,0.0941,31403.0,31361.0,0.17591]
[1610385335635,0.2724,31462.0,31361.0,0.17591]
[1610385336036,0.0955,31446.0,31361.0,0.17591]
[1610385336636,0.0955,31446.0,31415.0,0.13632608]
[1610385337437,0.2724,31462.0,31415.0,0.13632608]
[1610385338037,0.0956,31467.0,31415.0,0.13632608]
[1610385338637,0.0956,31467.0,31412.0,0.08242]
[1610385338837,0.17741,31467.0,31412.0,0.08242]
[1610385339545,0.08181,31467.0,31412.0,0.08242]
[1610385339745,0.0941,31466.0,31412.0,0.08242]
[1610385340155,0.08181,31467.0,31412.0,0.08242]
[1610385340343,1.0,31484.0,31412.0,0.08242]
[1610385340542,1.0,31484.0,31465.0,0.13632608]
[1610385340744,1.0,31484.0,31428.0,0.11106]
[1610385340944,1.0866,31484.0,31428.0,0.11106]
[1610385341848,0.0866,31484.0,31428.0,0.11106]
[1610385342645,0.0866,31484.0,31478.0,0.13632608]
[1610385342845,0.0258,31484.0,31478.0,0.13632608]
[1610385343048,5.0689,31506.0,31478.0,0.13632608]
[1610385343647,0.0948,31520.0,31478.0,0.13632608]
[1610385343847,0.095,31559.0,31479.0,0.0956]
[1610385344048,0.095,31559.0,31479.0,0.0856]
[1610385344649,0.13632608,31520.0,31513.0,0.13632608]
[1610385344850,0.20573608,31520.0,31479.0,0.0856]
[1610385345049,0.02383608,31520.0,31479.0,0.0856]
[1610385345249,0.0243,31519.0,31479.0,0.0856]
[1610385345449,0.01443608,31520.0,31479.0,0.0856]
[1610385345649,0.096,31531.0,31479.0,0.0856]
[1610385345849,2.51564651,31628.0,31479.0,0.0856]
[1610385346060,0.0496,31546.0,31479.0,0.0856]
[1610385346253,1.0,31573.0,31479.0,0.17199]
[1610385346450,0.946,31573.0,31479.0,0.17199]
[1610385346651,0.13632608,31577.0,31572.0,0.13632608]
[1610385346851,0.01212608,31577.0,31552.0,0.0938]
[1610385347068,0.0481,31593.0,31552.0,0.0938]
[1610385347252,0.2718,31633.0,31552.0,0.0938]
[1610385347452,0.0961,31632.0,31552.0,0.0938]
[1610385347652,0.19751,31632.0,31552.0,0.0938]
[1610385348556,0.19751,31632.0,31595.0,0.13632608]
[1610385348754,0.19751,31632.0,31571.0,0.0944]
[1610385350858,0.19751,31632.0,31569.0,3.986]
[1610385352658,0.19751,31632.0,31619.0,0.13632608]
[1610385352861,0.19751,31632.0,31569.0,3.986]
[1610385353060,0.0933,31640.0,31569.0,3.986]
[1610385353259,0.03883824,31637.0,31569.0,4.08808]
[1610385353662,0.03513824,31637.0,31569.0,4.08808]
[1610385354261,0.03303824,31637.0,31569.0,4.08808]
[1610385354665,0.03303824,31637.0,31635.0,0.13632608]
[1610385355063,0.01683824,31637.0,31635.0,0.13632608]
[1610385355764,0.0943,31662.0,31635.0,0.13632608]
[1610385355965,0.0433,31662.0,31635.0,0.13632608]
[1610385356166,0.0111,31662.0,31635.0,0.13632608]
[1610385356367,0.2699,31717.0,31635.0,0.13632608]
[1610385356565,0.2699,31717.0,31626.0,0.11148]
[1610385356566,0.2699,31717.0,31663.0,0.13632608]
[1610385356766,0.0484,31664.0,31663.0,0.13632608]
[1610385356967,0.10123,31664.0,31634.0,0.0951]
[1610385357168,0.05533,31664.0,31633.0,0.09541]
[1610385357365,0.04543,31664.0,31633.0,0.09541]
[1610385357767,0.03733,31664.0,31633.0,0.09541]
[1610385357966,0.0949,31663.0,31633.0,0.09541]
[1610385358168,0.0949,31663.0,31651.0,4.9837]
[1610385358368,0.0949,31663.0,31652.0,0.0947]
[1610385358567,0.13632608,31657.0,31654.0,0.13632608]
[1610385358767,0.0936,31685.0,31654.0,0.13632608]
[1610385359366,0.2699,31717.0,31654.0,0.13632608]
[1610385360868,0.2699,31717.0,31651.0,4.9837]
[1610385361066,0.38326,31717.0,31652.0,0.0949]
[1610385361268,0.38326,31717.0,31651.0,4.9837]
[1610385361868,0.38326,31717.0,31658.0,4.708]
[1610385362069,0.38326,31717.0,31659.0,0.0934]
[1610385362470,0.38326,31717.0,31659.0,0.026]
[1610385362671,0.13632608,31660.0,31659.0,0.026]
[1610385362870,0.23042608,31660.0,31659.0,0.026]
[1610385363070,0.33919608,31660.0,31659.0,0.026]
[1610385363569,0.33919608,31660.0,31652.0,0.0948]
[1610385363970,0.33919608,31660.0,31652.0,0.0635]
[1610385364171,0.33919608,31660.0,31642.0,0.0749]
[1610385364470,0.33919608,31660.0,31642.0,0.0607]
[1610385364672,0.13632608,31643.0,31455.0,1.98085285]
[1610385364875,0.13632608,31643.0,31456.0,2.26840307]
[1610385365279,0.13632608,31643.0,31456.0,0.2882]
[1610385365687,0.13632608,31643.0,31452.0,1.98412548]
[1610385366084,0.13632608,31643.0,31558.0,0.0961]
[1610385366673,0.10247,31646.0,31575.0,0.13632608]
[1610385366874,0.39937,31646.0,31576.0,0.0945]
[1610385367678,0.39937,31646.0,31623.0,3.873]
[1610385367877,0.39937,31646.0,31623.0,3.52165]
[1610385368076,0.39937,31646.0,31597.0,0.0938]
[1610385368478,0.39937,31646.0,31594.0,3.5407]
[1610385368679,0.13632608,31595.0,31590.0,0.0942]
[1610385368879,0.22287608,31595.0,31590.0,0.0942]
[1610385369180,0.22287608,31595.0,31590.0,0.0455]
[1610385369379,0.22287608,31595.0,31506.0,0.094]
[1610385369982,0.0934,31594.0,31476.0,0.0953]
[1610385370680,0.2895,31593.0,31476.0,0.0953]
[1610385370881,0.5823,31593.0,31476.0,0.0953]
[1610385371082,0.0934,31594.0,31476.0,0.0953]
[1610385371282,0.0934,31594.0,31476.0,0.20419]
[1610385371681,0.03725,31606.0,31476.0,0.20419]
[1610385371881,0.00605,31606.0,31476.0,0.20419]
[1610385372082,0.024,31617.0,31476.0,0.20419]
[1610385372282,0.2891,31624.0,31476.0,0.20419]
[1610385372881,0.2891,31624.0,31558.0,0.29727249]
[1610385373083,0.2891,31624.0,31558.0,0.39699249]
[1610385374685,0.2891,31624.0,31599.0,0.13632608]
[1610385374885,0.2891,31624.0,31584.0,0.1042]
[1610385375085,0.39755,31624.0,31584.0,0.1042]
[1610385375988,0.39755,31624.0,31582.0,0.0944]
[1610385376396,0.39755,31624.0,31564.0,0.095]
[1610385377200,0.39755,31624.0,31572.0,0.6265]
[1610385377390,0.39755,31624.0,31572.0,0.83308]
[1610385377991,0.39755,31624.0,31572.0,0.73938]
[1610385378691,0.094,31623.0,31577.0,0.13632608]
[1610385378891,0.094,31623.0,31572.0,0.73938]
[1610385379091,0.7953,31623.0,31572.0,0.07328]
[1610385379291,0.094,31623.0,31564.0,0.0939]
[1610385379691,0.094,31623.0,31558.0,0.29727249]
[1610385380691,0.094,31623.0,31611.0,0.13632608]
[1610385381292,0.094,31623.0,31611.0,0.23038608]
[1610385381492,0.0949,31639.0,31611.0,0.23038608]
[1610385381895,0.3179,31737.0,31611.0,0.23038608]
[1610385382092,0.4735,31737.0,31612.0,0.0947]
[1610385382293,0.4735,31737.0,31611.0,0.23038608]
[1610385382493,0.18289,31647.0,31611.0,0.23038608]
[1610385382692,0.18289,31647.0,31598.0,0.09676]
[1610385382895,0.13632608,31612.0,31599.0,0.13632608]
[1610385383094,0.21151608,31612.0,31599.0,0.13632608]
[1610385383896,0.21151608,31612.0,31590.0,0.0961]
[1610385384699,0.13632608,31591.0,31590.0,0.0961]
[1610385384898,0.13632608,31591.0,31586.0,0.0945]
[1610385385099,0.10289,31600.0,31586.0,0.0945]
[1610385385300,0.0938,31611.0,31586.0,0.0945]
[1610385385503,0.03229,31612.0,31586.0,0.0945]
[1610385385902,2.63384758,31731.0,31586.0,0.0945]
[1610385386302,2.63425814,31732.0,31582.0,0.07326]
[1610385386502,4.64462,31631.0,31582.0,0.07326]
[1610385386703,0.13632608,31587.0,31586.0,0.13632608]
[1610385387304,0.13632608,31587.0,31586.0,0.23072608]
[1610385387505,0.23072608,31587.0,31586.0,0.23072608]
[1610385387704,2.608e-05,31587.0,31586.0,0.0944]
[1610385388009,0.0962,31602.0,31586.0,0.0944]
[1610385388207,0.0962,31602.0,31586.0,0.1809]
[1610385388407,0.0937,31606.0,31586.0,0.1809]
[1610385388807,0.0937,31606.0,31593.0,0.13632608]
[1610385389007,0.0937,31606.0,31587.0,0.0954]
[1610385389708,0.10366,31612.0,31586.0,0.0865]